{"text_format":"1","workbook":"xlsx","n_sheets":9,"sheets":["①企業健診について","②協会けんぽ健康診断申込書","ID","③受診者リスト ","【桜十字福岡病院】オプション一覧","【桜十字博多駅健診クリニック】オプション一覧","取り込み用","契約コース内容","運用について"],"not_rendered":{"charts":0,"images":7,"macros":1,"external_links":0,"defined_names":8,"comments":0,"pivot_tables":0},"unopened":[],"bounds":{"document_bytes":16777216,"sheet_cells":100000,"rows_first":2000,"rows_last":500,"rows_between":2000,"halvings":0,"cell_chars":16384,"cell_head_chars":4096},"cells_cut":0,"cells_raw":0,"read":"whole","date_system":"1900"}

{"sheet":"①企業健診について","index":0,"n_rows":28,"n_cols":4,"rows_kept":28,"cut":false,"hidden":false,"merged":[[26,1,26,31],[25,1,25,31],[27,1,27,31],[0,1,0,31],[11,1,12,31],[2,1,2,31],[3,1,3,31],[4,1,4,31],[8,3,8,21],[7,3,7,21],[15,1,15,31]]}
[null,"2024年度協会けんぽ 企業健診申込について"]
[]
[null,"2020年度より協会けんぽへの申込制度の廃止及び当院の予約システム刷新に伴い企業健診の"]
[null,"お申込みが変わりました。下記の必要書類をご用意の上、ご予約頂きますようお願い申し上げます。"]
[]
[]
[null,null,null,"【企業健診申込みに必要な書類】"]
[null,null,null,"　1.健康診断申込書"]
[null,null,null,"　2.受診者リスト　添付書類/協会けんぽ健診対象者一覧※"]
[]
[]
[null,"【※】協会けんぽより年度初めに企業様宛へ送付される書類となります。\n　　　紛失の場合は協会けんぽにて再発行や情報提供サービスからダウンロード可能です。\n　　　情報提供サービスの利用方法は『全国健康保険協会のホームページ』をご覧下さい。"]
[]
[]
[null,"【注意事項】"]
[null,"◎請求書発行について\n　請求書発行はご予約10名様以上のご予約を取り纏めて頂ける企業様のみとさせて頂きます。\n　（9名様以下の企業様及び個人でのはお申込みは当日支払いとなります）\n\n◎企業様健診結果の送付について\n　『労働安全衛生規則』に定められた検査結果の提供となります。\n\nご理解ご協力の程よろしくお願い申し上げます。"]
[]
[]
[null,null,"■お申込み方法お問合せ（TEL）"]
[null,null,"医療法人 福岡桜十字 桜十字福岡病院 <人間ドック・健診センター>"]
[null,null,"TEL : 092-791-1120  "]
[null,null,"受付時間 平日 8:30～16:30 ／ 第 １・３土曜 8:30～12:00"]
[null,null,"（但し、祝日及び年始第1土曜日は休診日となります。）"]
[]
[]
[null,"書類確認後、当院より健診日程のご連絡をさせて頂きます。"]
[null,"年度初めは健診のお申込を多く頂く為、予約の日程調整にお時間をいただく場合がございます。"]
[null,"順番に対応致しますので、ご了承の程よろしくお願い申し上げます。"]

{"sheet":"②協会けんぽ健康診断申込書","index":1,"n_rows":39,"n_cols":27,"rows_kept":39,"cut":false,"hidden":false,"merged":[[32,2,32,6],[32,7,32,9],[32,10,32,14],[32,15,32,17],[22,2,23,25],[31,2,31,6],[31,7,31,9],[31,10,31,14],[31,15,31,17],[31,18,31,22],[31,23,31,25],[26,1,28,1],[26,2,26,22],[26,23,26,26],[27,2,27,22],[27,23,27,26],[28,2,28,22],[28,23,28,26],[0,19,0,21],[2,1,2,26],[7,1,9,4],[7,5,7,7],[7,8,7,26],[8,5,9,26],[4,1,4,26],[6,1,6,26],[5,1,5,26],[18,1,18,4],[18,5,18,7],[19,1,19,4],[19,5,19,7],[0,15,0,18],[18,9,20,26],[13,1,13,4],[13,5,13,13],[13,14,13,17],[13,18,13,26],[14,1,15,4],[14,5,15,13],[14,14,15,17],[14,18,14,19],[14,20,14,26],[15,18,15,26],[10,1,12,4],[10,6,10,7],[10,9,10,11],[10,12,10,26],[11,5,12,26]]}
[null,"2024年度協会けんぽ 企業健診申込について",null,null,null,null,null,null,null,null,null,null,null,null,null,"お 申 込 日",null,null,null,null,null,null,"年",null,"月",null,"日"]
[]
[null,"２０２４ 年 度 協 会 け ん ぽ 健 康 診 断 申 込 書 "]
[]
[null,"1.健康診断申込書（本用紙）2.受診者リスト（添付書類/協会けんぽ健診対象者一覧）と共にFAXでお申込み下さい。"]
[null,"◎事業所様情報"]
[null,"　下記事業所様住所へ送付物（事前ご案内書類・健診結果・対象事業所様は請求書）の手配をいたします。\n　尚、ご本人様向け書類（問診票 / 健診結果報告書）の送付先はご自宅ご住所へもご変更可能です。\n　ご希望の場合は日程確定後ご相談下さい。"]
[null,"事  業  所  名",null,null,null,"フ リ ガ ナ"]
[]
[]
[null,"事業所所在地",null,null,null,"〒",null,null,"-"]
[]
[]
[null,"電  話  番  号",null,null,null,null,null,null,null,null,null,null,null,null,"Ｆ Ａ Ｘ 番 号"]
[null,"担  当  部  署",null,null,null,null,null,null,null,null,null,null,null,null,"担当者様名",null,null,null,"フリガナ"]
[]
[]
[null,"◎報告書控え発行について",null,null,null,null,null,null,"希望項目に〇をつけてください"]
[null,"控え要",null,null,null,null,null,null,null,"＊2020年度より企業様控えは『労働安全衛生規則』に定められた検査結果の提供となります。（ご本人様用と書式が異なります）\n請求書発行が可能な企業様の場合、請求書送付時に企業控えは同封させて頂きます。"]
[null,"控え不要"]
[]
[null,"◎請求書発行について"]
[null,null,"・請求書発行はご予約10名様以上のご予約を取り纏めて頂ける企業様のみとさせて頂きます。\n　→下記より請求内容をご選択ください\n・9名様以下の企業様及び個人でのお申込みは当日支払いとなります。\n　→下記請求内容は空欄でご提出ください。"]
[]
[]
[null,"請求内容",null,null,null,"10名様以上お申込みの場合、3パターンより請求内容を１つお選び下さい。希望内容に〇をつけてください"]
[null,"請　求 内 容"," 主コース (一般健診 / 定期診断B）のみ"]
[null,null,"主コース (一般健診 / 定期診断B） + 胃カメラ差額"]
[null,null,"主コース (一般健診 / 定期診断B） + 胃カメラ差額 + 付加 + 乳がん検診 + 子宮頚がん検診"]
[]
[null,null,"請求発行可の項目（協会けんぽ補助利用時の負担額　※税込み金額で表示）"]
[null,null,"一般健診",null,null,null,null,"5,282円",null,null,"付加健診",null,null,null,null,"2,689円",null,null,"子宮頸がん検診",null,null,null,null,"970円"]
[null,null,"乳がん検診（40歳～48歳）",null,null,null,null,"1,574円",null,null,"乳がん検診（50歳以上）",null,null,null,null,"1,013円",null,null,"*当院オプションは当日支払いとなります\n"]
[]
[null,null,"■お申込み方法(FAXにて受付）・お問合せ"]
[null,null,"医療法人福岡桜十字 桜十字福岡病院 <人間ドック・健診センター>"]
[null,null,"TEL : 092-791-1120",null,null,null,null,null,null,null,"FAX : 092-791-5650"]
[null,null,"受付時間 平日 8:30～16:30／第1・3土曜日 8:30～12:00"]
[null,null,"（但し、祝日及び年始第1土曜日は休診日となります。）"]

{"sheet":"ID","index":2,"n_rows":1,"n_cols":11,"rows_kept":1,"cut":false,"hidden":true,"merged":[]}
["ID","カナ氏名","氏名","性別","生年月日","団体1・団体番号","本人家族区分","任継区分","被保険者証等記号","被保険者証等番号","保険者番号"]

{"sheet":"③受診者リスト ","index":3,"n_rows":28,"n_cols":23,"rows_kept":28,"cut":false,"hidden":false,"merged":[[13,15,13,16],[2,0,2,6],[6,0,6,1],[6,2,6,3],[12,20,12,22],[10,0,11,1],[9,0,9,1],[3,0,3,6],[12,8,12,10],[12,12,12,14],[12,15,12,16],[4,0,5,6],[7,8,9,8],[12,17,12,19],[6,4,6,6],[7,0,8,1],[7,2,8,3],[7,4,8,6],[9,2,9,6],[10,2,11,6]]}
[null,null,null,null,null,null,null,null,null,null,null,null,null,null,null,null,"≪保険証サンプル≫"]
[]
["受診者リスト　　　　申込日：　　　　　　　　年　　　　　　　月　　　　　　　日"]
["事業所様名称"]
[]
[]
["被保険者証記号（※①）",null,"保険者番号（※③）",null,"保険者名称",null,null,null,"【数は記入しないでください】",null,null,null,null,"差額\n人間ドック",{"$f":"COUNTIF('③受診者リスト '!$J$15:$J$28,\"○\")","v":0}]
[null,null,null,null,"全国健康保険協会 (　　　　　　　)支部",null,null,null,"主コース","協会一般",{"$f":"COUNTIF('③受診者リスト '!$I$15:$I$28,\"協会一般\")","v":0},null,null,"胃カメラ",{"$f":"COUNTIF(K15:K28,\"<>\")","v":0}]
[null,null,null,null,null,null,null,null,null,"定期B",{"$f":"COUNTIF('③受診者リスト '!$I$15:$I$28,\"定期B\")","v":0},null,null,"付加健診",{"$f":"COUNTIF('③受診者リスト '!$M$15:$M$28,\"○\")","v":0}]
["1日最大予約上限人数",null,"NG日、NG曜日（定休日など）",null,null,null,null,null,null,"計",{"$f":"SUM(K9:K9)","v":0},null,null,"協会\n子宮頸がん",{"$f":"COUNTIF('③受診者リスト '!$N$15:$N$28,\"○\")","v":0}]
[null,null,null,null,null,null,null,null,null,null,null,null,null,"協会乳がん",{"$f":"COUNTIF('③受診者リスト '!$O$15:$O$28,\"<>\")","v":0}]
[null,null,null,null,null,null,null,null,null,null,null,"注1：鎮静剤使用料が別途￥3,300(税込)発生いたします。鎮静剤が利用可能な時間は右記URLをご参照ください。",null,null,null,null,null,null,null,"https://sjkenshin-yoyaku.jp/static/pdf/dantai/2024_ikamera_setumei_fukuoka.pdf"]
["＊受診者様の情報を入力ください。当院ＩＤ・年齢は入力不要です＊",null,null,null,null,null,"2025-04-01","起算","健診コース\n（色付きは補助対象項目）",null,null,"注1","協会オプション健診 \n（色付きは補助対象項目）",null,null,"当院オプション\n3つ以上希望の場合は備考欄へ\nご記入ください",null,"日程希望",null,null,"■ご希望日に空きがない場合は\n　別日のご提案となります"]
["当院ID\n入力不要","施設","被保険証番号（個人）\n（※②）","氏名（全角）\n姓と名の間にスペースを入れて登録","ﾌﾘｶﾞﾅ（半角）\n姓と名の間にｽﾍﾟｰｽを入れて登録","性別","生年月日\n※入力間違いがない\nようご注意ください","年齢\n(自動算出）","主コース","差額\n人間ドック","胃部X線検査を胃カメラへ変更","鎮静剤\n希望有無\n※経鼻は\n利用不可","付加健診(40・45・50・55・60・65・70歳）","協会子宮頸がん\n20歳～74歳偶数年齢","協会乳がん\n40歳～74歳偶数年齢","★：桜十字福岡病院のみ実施可能検査（桜十字博多駅健診クリニックでは実施不可）",null,"第１希望日","第2希望日","第3希望日","提案日","受付時間","備考"]
[{"$f":"IFERROR(INDEX(ID[[#All],[ID]],MATCH('③受診者リスト '!$E15,ID[[#All],[カナ氏名]],0)),\"\")","v":""}]
[{"$f":"IFERROR(INDEX(ID[[#All],[ID]],MATCH('③受診者リスト '!$E16,ID[[#All],[カナ氏名]],0)),\"\")","v":""},null,null,null,null,null,null,{"$f":"IF(G16=\"\",\"\",DATEDIF(G16,$G$13,\"Y\"))","v":""}]
[{"$f":"IFERROR(INDEX(ID[[#All],[ID]],MATCH('③受診者リスト '!$E17,ID[[#All],[カナ氏名]],0)),\"\")","v":""},null,null,null,null,null,null,""]
[{"$f":"IFERROR(INDEX(ID[[#All],[ID]],MATCH('③受診者リスト '!$E18,ID[[#All],[カナ氏名]],0)),\"\")","v":""},null,null,null,null,null,null,""]
[{"$f":"IFERROR(INDEX(ID[[#All],[ID]],MATCH('③受診者リスト '!$E19,ID[[#All],[カナ氏名]],0)),\"\")","v":""},null,null,null,null,null,null,"",null,null,null,null,null,null,null,null,null,"　　"]
[{"$f":"IFERROR(INDEX(ID[[#All],[ID]],MATCH('③受診者リスト '!$E20,ID[[#All],[カナ氏名]],0)),\"\")","v":""},null,null,null,null,null,null,""]
[{"$f":"IFERROR(INDEX(ID[[#All],[ID]],MATCH('③受診者リスト '!$E21,ID[[#All],[カナ氏名]],0)),\"\")","v":""},null,null,null,null,null,null,""]
[{"$f":"IFERROR(INDEX(ID[[#All],[ID]],MATCH('③受診者リスト '!$E22,ID[[#All],[カナ氏名]],0)),\"\")","v":""},null,null,null,null,null,null,""]
[{"$f":"IFERROR(INDEX(ID[[#All],[ID]],MATCH('③受診者リスト '!$E23,ID[[#All],[カナ氏名]],0)),\"\")","v":""},null,null,null,null,null,null,""]
[{"$f":"IFERROR(INDEX(ID[[#All],[ID]],MATCH('③受診者リスト '!$E24,ID[[#All],[カナ氏名]],0)),\"\")","v":""},null,null,null,null,null,null,""]
[{"$f":"IFERROR(INDEX(ID[[#All],[ID]],MATCH('③受診者リスト '!$E25,ID[[#All],[カナ氏名]],0)),\"\")","v":""},null,null,null,null,null,null,""]
[{"$f":"IFERROR(INDEX(ID[[#All],[ID]],MATCH('③受診者リスト '!$E26,ID[[#All],[カナ氏名]],0)),\"\")","v":""},null,null,null,null,null,null,""]
[{"$f":"IFERROR(INDEX(ID[[#All],[ID]],MATCH('③受診者リスト '!$E27,ID[[#All],[カナ氏名]],0)),\"\")","v":""},null,null,null,null,null,null,""]
[{"$f":"IFERROR(INDEX(ID[[#All],[ID]],MATCH('③受診者リスト '!$E28,ID[[#All],[カナ氏名]],0)),\"\")","v":""},null,null,null,null,null,null,""]

{"sheet":"【桜十字福岡病院】オプション一覧","index":4,"n_rows":66,"n_cols":4,"rows_kept":66,"cut":false,"hidden":false,"merged":[[64,1,64,3],[65,1,65,2],[35,0,38,0],[39,0,40,0],[43,0,45,0],[43,2,44,2],[46,0,54,0],[55,0,63,0],[26,0,34,0],[1,0,1,1],[2,0,10,0],[11,0,14,0],[15,0,20,0],[21,0,25,0]]}
["2024年度 オプション検査料金表"]
["オプション名",null,"検査の説明","料金（税込）"]
["脳・心臓","頭部MRI・MRA　★","磁石と電磁波を用い放射線被曝なく脳の状態を詳しく調べることができるため、将来の脳卒中予防の目的で脳ドックの主要検査項目の一つとなっています。また造影剤（薬剤）を用いずに脳の動脈を立体的に観察できるため、くも膜下出血の原因となる未破裂動脈瘤の有無についても調べることが可能です。",24200]
[null,"頸動脈エコー","頸動脈にエコーをあて動脈壁の厚さを測定し、全身の動脈硬化の程度を判定する検査です。また頸動脈が狭くなっていないかについても調べることができます。",4730]
[null,"脳検査セット　★","MRIによる脳や脳動脈の状態チェックとエコーによる動脈硬化のチェックを合わせたセットです。40歳以上、飲酒や喫煙量が多い、血縁者に脳卒中になった方がいる、肥満や生活習慣病がある方などにおすすめです。",26950]
[null,"AI認知機能検査（BrainSuite）※1　★","AIを使用した認知機能検査です。脳画像検査（MRI）及び認知機能スクリーニング検査を行い、現在の脳機能を評価することで、生活習慣を見直し、脳萎縮を抑え認知症等の疾患を予防・脳健康を維持することにつなげます。",11220]
[null,"AI認知機能検査セット★","MRIによる脳や脳動脈の状態チェックとAIを使用した認知機能検査を合わせたセットです。",35200]
[null,"MCIスクリーニング検査プラス","軽度認知障害 (MCI ）のリスク を調べることのできる血液検査です。\n認知症の予備軍とも言われ、そのまま放置すると5年で50%近くが認知症に進行しすると言われております。",24200]
[null,"安静時心電図","手足・胸に電極を付け、心臓が発する電気刺激を波形として記録する検査です。心臓の病気を発見する手掛かりになります。",1980]
[null,"NTPro-BNP","心臓にかかる負荷の有無やその程度を測定する心機能のマーカーです。自覚症状のない初期の段階の心機能低下の早期発見につながります。",2750]
[null,"LOX‐index","脳梗塞や心筋梗塞の原因となる動脈硬化の原因物質を測定することにより、脳梗塞や心筋梗塞の発症リスクがわかる最新の検査です。近親者でこれらの疾患の既往歴がある方、コレステロールや血糖値が高い方、喫煙されている40歳以上の方などにおすすめです。",13200]
["肺","低線量肺がんCT　★","日本人のがん死亡者数の第１位である肺がんを発見することに特化したCT検査です。対象臓器を肺に限定することで、被ばく線量を従来の胸部CTの約1/5（当院従来比）に低減させることができます。",11000]
[null,"喀痰検査","痰の中に病的な細胞が含まれていないかを顕微鏡で調べる検査です。主に扁平上皮がんの発見を目的として胸部レントゲン写真や低線量肺がんCTと併せて行います。",3300]
[null,"Pro‐GRP","肺がん（特に小細胞がん）に有用な腫瘍マーカーです。",2750]
[null,"シフラ","肺がん（特に扁平上皮がん）に有用な腫瘍マーカーです。",2750]
["胃","胃透視（バリウム検査）","バリウムを飲んでX線で食道・胃・十二指腸の上部消化管の撮影を行います。胃全体の形を捉えやすいため、スキルス胃がんの特徴である胃の伸展不良（壁が硬くふくらみが悪い）の診断に有用です。",11550]
[null,"35歳未満限定胃透視　\n（バリウム検査）","35歳未満限定料金。一般的な胃がんはピロリ菌の感染や喫煙などがリスクとされ50代以上の男性に多いのに対して、スキルス胃がんは20代や30代の若年層（特に女性）にも発生することがあります。",7700]
[null,"胃カメラ（胃内視鏡検査）","内視鏡を使用して、食道・胃・十二指腸を直接観察し、がん、潰瘍・ポリープ・炎症などの発見に有用です。カメラを口から挿入する方法と鼻から挿入する方法があります。",17050]
[null,"胃カメラ鎮静剤","胃カメラ時（口から挿入する場合）に使用します。意識がぼんやりとした状態となり苦痛を軽減できますが、使用後は一定時間お休み頂きます。検査当日は車等の運転は出来ません。※鎮静効果には個人差があります。",3300]
[null,"ヘリコバクターピロリIgG","胃がんや胃潰瘍の原因と言われる「ピロリ菌」に感染していないかを調べます。",2750]
[null,"ABC検査\n（胃がんリスク健診）","ピロリ菌感染の有無と胃粘膜萎縮の程度を測定し、胃がんのリスクを総合的に判定します。明らかな消化器症状のある方や治療中の方、ピロリ菌の除菌後の方は正しい結果が得られませんので、ご注意ください。",6600]
["大腸","大腸カメラ（大腸内視鏡検査）","肛門から内視鏡を入れて直腸から盲腸までの大腸全体を直接観察します。大腸がんは男女ともに死因の上位です。40歳以上の方は一度検査をすることをお勧めします。",27500]
[null,"便潜血","便中の血液混入の有無を判断する検査です。大腸がんを発見する手がかりとなります。",1650]
[null,"Flora Scan","日本人特有の腸内フローラ（腸内細菌の種類や量）のタイプを5つに分類し、生活習慣病、および腸疾患等との関連性を調べる検査です。",16500]
[null,"Cologic","血清中のGTA-446の濃度を調べることで大腸がんのリスクを調べることができる血液検査です。脂肪酸の一種であるGTA-446は大腸がん患者で特異的に減少することが明らかにされており、高リスク群では低リスク群に比べ約300倍のリスクを有していることが分かっています。",13200]
[null,"CEA","大腸がん発見の手がかりとなる検査です。便潜血とセットでの受診をおすすめします。",2750]
["肝臓・胆のう・膵臓","腹部エコー","超音波を発する器具（プローブ）を腹部にあてて、上腹部臓器（肝臓・胆のう・すい臓・腎臓・ひ臓・腹部大動脈）を観察し、腫瘍や結石の有無などを調べる検査です。",7150]
[null,"腹部CT　★","放射線を用いて、肝臓・胆のう・膵臓・腎臓・ひ臓などの上腹部臓器のほか、大動脈や骨盤内についての異常の有無を調べる検査です。",14850]
[null,"AFP","肝臓がん発見の手がかりとなる検査です。肝がん（肝臓がん）を罹患した場合は血液中にAFPがみられるため、腫瘍マーカーとして用いられている検査です。",2750]
[null,"PIVKA-Ⅱ","肝臓がん発見の手がかりとなる検査です。肝細胞がんの有無の可能性を知るために行われる検査です。",2750]
[null,"肝臓腫瘍マーカーセット\n　　（『AFP』 + 『PIVKA‐Ⅱ』）","肝臓がん発見の手がかりとなる検査です。",4950]
[null,"CA19-9 ","膵臓がん発見の手がかりとなる検査です。胃がんや大腸がんなど、消化器系のがんにも反応を示します。",2750]
[null,"HBｓ抗原（B型肝炎ウイルス検査）","B型肝炎ウイルス感染の有無を調べる検査です。",1100]
[null,"HBｓ抗体（B型肝炎ウイルス検査）","HBs抗原に対する抗体の有無を調べる検査です。陽性であれば過去に感染し、その後、治癒したことを示唆します。HBVワクチンを接種した場合にも陽性となります。",1100]
[null,"HCV抗体（C型肝炎ウイルス検査）","C型肝炎ウイルス感染の有無を調べる検査です。HCV抗体陽性の場合、C型肝炎ウイルスへの感染の既往を意味します。早期に検査をすること肝硬変や肝臓がんなどへの進展を防ぎます。",1870]
["保健師おススメ","HbA1c(ヘモグロビンA1C）","食事や運動などの影響を受けにくく、過去1～2か月の平均的な血糖の状態を調べる検査です。血糖値のコントロール状態を知ることができます。",550]
[null,"眼底カメラ","カメラを用いて眼底にある血管や神経組織を観察します。緑内障、網膜色素変性症、黄斑変性症、網膜剥離、眼底出血などの眼の病気の他、高血圧や糖尿病などの全身性の病気の発見にも有効です。",2200]
[null,"内臓脂肪CT　★","内臓脂肪が多いほどメタボリック・シンドロームの発症の可能性が高まります。CTを用いて腹部の内臓脂肪と皮下脂肪の量を測定することで、腹囲は正常でも内臓脂肪の多い「隠れ肥満」の発見に有用です。",4180]
[null,"Inbody測定（体組成測定）　★","体成分分析装置です。体脂肪率だけでなく、体を構成する基本成分である体水分・タンパク質・ミネラル・体脂肪を定量的に分析します。生活習慣を見直すきっかけになります。",550]
["甲状腺","甲状腺エコー","甲状腺に超音波をあてて甲状腺の大きさやしこりの有無など内部の状態を調べる検査です。血液検査とあわせて受けることをおすすめします。",3630]
[null,"TSH・FT3・FT4","甲状腺刺激ホルモンと2種類の甲状腺ホルモンの量を調べることで、女性に多い甲状腺機能異常（バセドウ病、橋本病など）の早期発見につながります。",4180]
["前立腺","高感度PSA","前立腺がんに特異性の高い検査です。自覚症状のない段階での早期発見にも役立ちます。40歳以上の男性におすすめします。",2750]
["リウマチ","抗CCP抗体","女性に多い病気と言われる関節リウマチの発症予測に有用な検査です。抗CCP抗体は今までのリウマチ因子検査よりはるかに鋭敏であり、正確にリウマチの発症を予測できる最も重要な血液検査です。",2200]
["乳腺","マンモグラフィ（1方向）","乳房を挟んでX線撮影をする検査です。小さなしこりや石灰化を調べ、近年増加している乳がんの早期発見に有用です。乳腺が豊富な方（乳腺高濃度）は、乳腺超音波との併用をおすすめします。1方向と2方向では撮影枚数が異なります。乳腺密度の高い方（30～40代）は2方向をおすすめします。",3300]
[null,"マンモグラフィ（2方向）",null,4400]
[null,"乳腺エコー","乳房に超音波をあて、しこりや乳管の変化の有無を調べる検査です。乳腺が発達している若い方（乳腺高濃度）や妊娠中・授乳中の方にもおすすめです。",4400]
["婦人科（子宮・卵巣）","子宮頸部細胞診","ブラシを用いて子宮頸部より細胞を採取し子宮頸がんに至る病変細胞の有無を顕微鏡で調べる検査です。子宮頸部がんは、子宮の入り口付近に発生することが多いので、直接細胞を採取することでがん及び前がん状態を見つけることができます。",5500]
[null,"HPV検査","子宮頸がんの原因となるHPV（ヒトパピローマウイルス）への感染の有無を調べる検査です。子宮頸がん検査（細胞診）時に一緒に検査することが可能で、同時に検査することで子宮がん検診の精度を高めることができます。",5500]
[null,"経腟エコー　★","膣の中に細長いエコーの機械（プローブ）を挿入し、子宮や卵巣の状態を観察する検査です。子宮筋腫・子宮内膜症・卵巣腫瘍などの発見につながります。",4180]
[null,"エクオール検査","エクオールとは女性ホルモンと似た働きをする成分です。腸内で、大豆イソフラボンから「エクオール」が作られているかを尿検査で調べます。更年期の症状が気になるゆらぎ世代の方々におすすめです。",3850]
[null,"ホルモンチェック","女性ホルモンの乱れや自律神経の乱れは閉経前後の心身にさまざまな不調をもたらします。不調の原因が女性ホルモンの減少によるものかどうかの参考のために血中の女性ホルモンの値を調べる検査です。特にゆらぎ世代の方はご自身が閉経に向けたどのあたりの状態にいるのかの参考になります。",4400]
[null,"CA125 ","卵巣がん発見の手がかりとなる検査です。",2750]
[null,"AMH（抗ミュラー管ホルモン）検査","現在の「卵子」の数の目安、つまり卵巣予備能（卵巣年齢）を知ることができ、今後の妊活を含めライフプラン形成に役立てることができます。血液検査のため月経周期を気にせずに検査を受けられます。今後妊娠を希望される方におすすめします。",6600]
[null,"骨密度","放射線を用いて骨の密度を測定する検査です。女性ホルモンの減少と深くかかわるため、40歳以上の女性、特に閉経後の方におすすめします。",3300]
[null,"婦人科ナースおススメ3点セット　★","子宮・卵巣の健康状態がわかるベーシックでお得なセットです。１度内診台に上がり１０分程度で全ての検査が受けられます。　　（『子宮頸部細胞診』 + 『HPV』 + 『経腟エコー』）",13200]
["　","風疹抗体検査","風疹に対する免疫があるかどうかを調べる検査です。",4950]
[null,"麻疹抗体検査","麻疹に対する免疫があるかどうかを調べる検査です。",4950]
[null,"血液型（ABO・Rh）","緊急で輸血が必要となる場合に役立ちます。",660]
[null,"View39（アレルギー検査）","アレルギー症状は、自覚症状がある方はもちろん、現在症状がなくても、ご自身がどのようなアレルゲン物質に対してアレルギーを引き起こす可能性があるか知っておくことが大切です。View39では少量の採血で一度に39種類（卵、牛乳、小麦、豆類、甲殻類、果物、魚、肉、動物、昆虫、樹木、草、カビ、塵など）のアレルギー検査が可能です。",14800]
[null,"SCC抗原","扁平上皮がん（食道がん、子宮頸がん、皮膚がん、肺がん、咽頭がん）などを調べます。",2750]
[null,"男性向け腫瘍マーカー4種セット\n　　（『AFP』 ＋ 『CA19-9』 ＋ 『CEA』 ＋ 『PSA』）","男性向けのお得な腫瘍マーカー４種セットです。",8800]
[null,"女性向け腫瘍マーカー4種セット\n　　（『AFP』 ＋ 『CA19-9』 ＋ 『CEA』 ＋ 『CA125』）","女性向けのお得な腫瘍マーカー４種セットです。",8800]
[null,"男性向け腫瘍マーカー6種セット\n　　（『AFP』　+　『CA19-9』 + 『CEA』 + 『PSA』 +\n　　 『シフラ』 + 『Pro-GRP』） ","男性向けのお得な腫瘍マーカー６種セットです。",12100]
[null,"女性向け腫瘍マーカー6種セット\n　　（『AFP』 ＋ 『CA19-9』 ＋ 『CEA』 ＋ 『CA125』\n　　　『シフラ』 + 『Pro‐GRP』）","女性向けのお得な腫瘍マーカー６種セットです。",12100]
["※1","こちらの検査は脳ドックとコースにMRIが入っている方及びオプションで頭部MRI・MRAまたは脳検査セットを追加している方のみ受診可能です。"]
["★","桜十字福岡病院のみ実施可能検査（桜十字博多駅健診クリニックでは実施不可）"]

{"sheet":"【桜十字博多駅健診クリニック】オプション一覧","index":5,"n_rows":54,"n_cols":4,"rows_kept":54,"cut":false,"hidden":false,"merged":[[35,2,36,2],[38,0,44,0],[45,0,53,0],[1,0,1,1],[2,0,6,0],[7,0,9,0],[10,0,15,0],[16,0,20,0],[21,0,28,0],[29,0,30,0],[31,0,32,0],[35,0,37,0]]}
["2024年度 オプション検査料金表"]
["オプション名",null,"検査の説明","料金（税込）"]
["脳・心臓","頸動脈エコー","頸動脈にエコーをあて動脈壁の厚さを測定し、全身の動脈硬化の程度を判定する検査です。また頸動脈が狭くなっていないかについても調べることができます。",3630]
[null,"MCIスクリーニング検査プラス","軽度認知障害 (MCI ）のリスク を調べることのできる血液検査です。\n認知症の予備軍とも言われ、そのまま放置すると5年で50%近くが認知症に進行しすると言われております。",24200]
[null,"安静時心電図","手足・胸に電極を付け、心臓が発する電気刺激を波形として記録する検査です。心臓の病気を発見する手掛かりになります。",1650]
[null,"NTPro-BNP","心臓にかかる負荷の有無やその程度を測定する心機能のマーカーです。自覚症状のない初期の段階の心機能低下の早期発見につながります。",2750]
[null,"LOX‐index","脳梗塞や心筋梗塞の原因となる動脈硬化の原因物質を測定することにより、脳梗塞や心筋梗塞の発症リスクがわかる最新の検査です。近親者でこれらの疾患の既往歴がある方、コレステロールや血糖値が高い方、喫煙されている40歳以上の方などにおすすめです。",13200]
["肺","喀痰検査","痰の中に病的な細胞が含まれていないかを顕微鏡で調べる検査です。主に扁平上皮がんの発見を目的として胸部レントゲン写真や低線量肺がんCTと併せて行います。",3300]
[null,"Pro‐GRP","肺がん（特に小細胞がん）に有用な腫瘍マーカーです。",2750]
[null,"シフラ","肺がん（特に扁平上皮がん）に有用な腫瘍マーカーです。",2750]
["胃","胃透視（バリウム検査）","バリウムを飲んでX線で食道・胃・十二指腸の上部消化管の撮影を行います。胃全体の形を捉えやすいため、スキルス胃がんの特徴である胃の伸展不良（壁が硬くふくらみが悪い）の診断に有用です。",10450]
[null,"35歳未満限定胃透視　\n（バリウム検査）","35歳未満限定料金。一般的な胃がんはピロリ菌の感染や喫煙などがリスクとされ50代以上の男性に多いのに対して、スキルス胃がんは20代や30代の若年層（特に女性）にも発生することがあります。",7700]
[null,"胃カメラ（胃内視鏡検査）","内視鏡を使用して、食道・胃・十二指腸を直接観察し、がん、潰瘍・ポリープ・炎症などの発見に有用です。カメラを口から挿入する方法と鼻から挿入する方法があります。",15950]
[null,"胃カメラ鎮静剤","胃カメラ時（口から挿入する場合）に使用します。意識がぼんやりとした状態となり苦痛を軽減できますが、使用後は一定時間お休み頂きます。検査当日は車等の運転は出来ません。※鎮静効果には個人差があります。",3300]
[null,"ヘリコバクターピロリIgG","胃がんや胃潰瘍の原因と言われる「ピロリ菌」に感染していないかを調べます。",2200]
[null,"ABC検査\n（胃がんリスク健診）","ピロリ菌感染の有無と胃粘膜萎縮の程度を測定し、胃がんのリスクを総合的に判定します。明らかな消化器症状のある方や治療中の方、ピロリ菌の除菌後の方は正しい結果が得られませんので、ご注意ください。",6600]
["大腸","大腸カメラ（大腸内視鏡検査）","肛門から内視鏡を入れて直腸から盲腸までの大腸全体を直接観察します。大腸がんは男女ともに死因の上位です。40歳以上の方は一度検査をすることをお勧めします。",22000]
[null,"便潜血","便中の血液混入の有無を判断する検査です。大腸がんを発見する手がかりとなります。",1650]
[null,"Flora Scan","日本人特有の腸内フローラ（腸内細菌の種類や量）のタイプを5つに分類し、生活習慣病、および腸疾患等との関連性を調べる検査です。",16500]
[null,"Cologic","血清中のGTA-446の濃度を調べることで大腸がんのリスクを調べることができる血液検査です。脂肪酸の一種であるGTA-446は大腸がん患者で特異的に減少することが明らかにされており、高リスク群では低リスク群に比べ約300倍のリスクを有していることが分かっています。",13200]
[null,"CEA","大腸がん発見の手がかりとなる検査です。便潜血とセットでの受診をおすすめします。",2750]
["肝臓・胆のう・膵臓","腹部エコー","超音波を発する器具（プローブ）を腹部にあてて、上腹部臓器（肝臓・胆のう・すい臓・腎臓・ひ臓・腹部大動脈）を観察し、腫瘍や結石の有無などを調べる検査です。",6050]
[null,"AFP","肝臓がん発見の手がかりとなる検査です。肝がん（肝臓がん）を罹患した場合は血液中にAFPがみられるため、腫瘍マーカーとして用いられている検査です。",2750]
[null,"PIVKA- Ⅱ","肝臓がん発見の手がかりとなる検査です。肝細胞がんの有無の可能性を知るために行われる検査です。",2750]
[null,"肝臓腫瘍マーカーセット\n　　（『AFP』 + 『PIVKA‐Ⅱ』）","肝臓がん発見の手がかりとなる検査です。",4950]
[null,"CA19-9 ","膵臓がん発見の手がかりとなる検査です。胃がんや大腸がんなど、消化器系のがんにも反応を示します。",2750]
[null,"HBｓ抗原（B型肝炎ウイルス検査）","B型肝炎ウイルス感染の有無を調べる検査です。",1100]
[null,"HBｓ抗体（B型肝炎ウイルス検査）","HBs抗原に対する抗体の有無を調べる検査です。陽性であれば過去に感染し、その後、治癒したことを示唆します。HBVワクチンを接種した場合にも陽性となります。",1100]
[null,"HCV抗体（C型肝炎ウイルス検査）","C型肝炎ウイルス感染の有無を調べる検査です。HCV抗体陽性の場合、C型肝炎ウイルスへの感染の既往を意味します。早期に検査をすること肝硬変や肝臓がんなどへの進展を防ぎます。",1870]
["保健師おススメ","HbA1c(ヘモグロビンA1C）","食事や運動などの影響を受けにくく、過去1～2か月の平均的な血糖の状態を調べる検査です。血糖値のコントロール状態を知ることができます。",550]
[null,"眼底カメラ","カメラを用いて眼底にある血管や神経組織を観察します。緑内障、網膜色素変性症、黄斑変性症、網膜剥離、眼底出血などの眼の病気の他、高血圧や糖尿病などの全身性の病気の発見にも有効です。",1650]
["甲状腺","甲状腺エコー","甲状腺に超音波をあてて甲状腺の大きさやしこりの有無など内部の状態を調べる検査です。血液検査とあわせて受けることをおすすめします。",3630]
[null,"TSH・FT3・FT4","甲状腺刺激ホルモンと2種類の甲状腺ホルモンの量を調べることで、女性に多い甲状腺機能異常（バセドウ病、橋本病など）の早期発見につながります。",4180]
["前立腺","高感度PSA","前立腺がんに特異性の高い検査です。自覚症状のない段階での早期発見にも役立ちます。40歳以上の男性におすすめします。",2750]
["リウマチ","抗CCP抗体","女性に多い病気と言われる関節リウマチの発症予測に有用な検査です。抗CCP抗体は今までのリウマチ因子検査よりはるかに鋭敏であり、正確にリウマチの発症を予測できる最も重要な血液検査です。",2200]
["乳腺","マンモグラフィ（1方向）","乳房を挟んでX線撮影をする検査です。小さなしこりや石灰化を調べ、近年増加している乳がんの早期発見に有用です。乳腺が豊富な方（乳腺高濃度）は、乳腺超音波との併用をおすすめします。\n1方向と2方向では撮影枚数が異なります。乳腺密度の高い方（30～40代）は2方向をおすすめします。",2750]
[null,"マンモグラフィ（2方向）",null,3850]
[null,"乳腺エコー","乳房に超音波をあて、しこりや乳管の変化の有無を調べる検査です。乳腺が発達している若い方（乳腺高濃度）や妊娠中・授乳中の方にもおすすめです。",3850]
["婦人科（子宮・卵巣）","子宮頸部細胞診","ブラシを用いて子宮頸部より細胞を採取し子宮頸がんに至る病変細胞の有無を顕微鏡で調べる検査です。子宮頸部がんは、子宮の入り口付近に発生することが多いので、直接細胞を採取することでがん及び前がん状態を見つけることができます。",4400]
[null,"HPV検査","子宮頸がんの原因となるHPV（ヒトパピローマウイルス）への感染の有無を調べる検査です。子宮頸がん検査（細胞診）時に一緒に検査することが可能で、同時に検査することで子宮がん検診の精度を高めることができます。",5500]
[null,"エクオール検査","エクオールとは女性ホルモンと似た働きをする成分です。腸内で、大豆イソフラボンから「エクオール」が作られているかを尿検査で調べます。更年期の症状が気になるゆらぎ世代の方々におすすめです。",3850]
[null,"ホルモンチェック","女性ホルモンの乱れや自律神経の乱れは閉経前後の心身にさまざまな不調をもたらします。不調の原因が女性ホルモンの減少によるものかどうかの参考のために血中の女性ホルモンの値を調べる検査です。特にゆらぎ世代の方はご自身が閉経に向けたどのあたりの状態にいるのかの参考になります。",4400]
[null,"CA125 ","卵巣がん発見の手がかりとなる検査です。",2750]
[null,"AMH（抗ミュラー管ホルモン）検査","現在の「卵子」の数の目安、つまり卵巣予備能（卵巣年齢）を知ることができ、今後の妊活を含めライフプラン形成に役立てることができます。血液検査のため月経周期を気にせずに検査を受けられます。今後妊娠を希望される方におすすめします。",6600]
[null,"骨密度","放射線を用いて骨の密度を測定する検査です。女性ホルモンの減少と深くかかわるため、40歳以上の女性、特に閉経後の方におすすめします。",2200]
["その他","風疹抗体検査","風疹に対する免疫があるかどうかを調べる検査です。",4950]
[null,"麻疹抗体検査","麻疹に対する免疫があるかどうかを調べる検査です。",4950]
[null,"血液型（ABO・Rh）","緊急で輸血が必要となる場合に役立ちます。",660]
[null,"View39（アレルギー検査）","アレルギー症状は、自覚症状がある方はもちろん、現在症状がなくても、ご自身がどのようなアレルゲン物質に対してアレルギーを引き起こす可能性があるか知っておくことが大切です。View39では少量の採血で一度に39種類（卵、牛乳、小麦、豆類、甲殻類、果物、魚、肉、動物、昆虫、樹木、草、カビ、塵など）のアレルギー検査が可能です。",14800]
[null,"SCC抗原","扁平上皮がん（食道がん、子宮頸がん、皮膚がん、肺がん、咽頭がん）などを調べます。",2750]
[null,"男性向け腫瘍マーカー4種セット\n　　（『AFP』 ＋ 『CA19-9』 ＋ 『CEA』 ＋ 『PSA』）","男性向けのお得な腫瘍マーカー４種セットです。",8800]
[null,"女性向け腫瘍マーカー4種セット\n　　（『AFP』 ＋ 『CA19-9』 ＋ 『CEA』 ＋ 『CA125』）","女性向けのお得な腫瘍マーカー４種セットです。",8800]
[null,"男性向け腫瘍マーカー6種セット\n　　（『AFP』　+　『CA19-9』 + 『CEA』 + 『PSA』 +\n　　 『シフラ』 + 『Pro-GRP』） ","男性向けのお得な腫瘍マーカー６種セットです。",12100]
[null,"女性向け腫瘍マーカー6種セット\n　　（『AFP』 ＋ 『CA19-9』 ＋ 『CEA』 ＋ 『CA125』\n　　　『シフラ』 + 『Pro‐GRP』）","女性向けのお得な腫瘍マーカー６種セットです。",12100]

{"sheet":"取り込み用","index":6,"n_rows":1,"n_cols":33,"rows_kept":1,"cut":false,"hidden":true,"merged":[]}
["受診施設","受付フロア","予約日","予約時間帯コード","呼出時間","団体番号","個人番号","カナ氏名","漢字氏名","性別","生年月日","保険者番号","被保険者証等記号","被保険者証等番号","契約番号","主コース","胃カメラ","協会マンモ","協会子宮","オプション","オプション","本人・家族区分","従業員コード","部署コード１","部署コード２","部署コード３","郵便番号","住所１","住所２","予約コメント","E-MAIL","加入健保団体番号","予約区分"]

{"sheet":"契約コース内容","index":7,"n_rows":27,"n_cols":2,"rows_kept":27,"cut":false,"hidden":true,"merged":[]}
["F0001","◆天神◆定期健康診断Ｂ"]
["F0002","◇博多◇定期健康診断Ｂ"]
["F0003","◆天神◆定期健康診断Ａ"]
["F0101","◇博多◇定期健康診断Ａ"]
["FK001","協会けんぽ一般健診"]
["FK002","協会けんぽ付加健診"]
["FK003","◆天神◆協会けんぽ付加健診同項目"]
["FK004","◆天神◆協会けんぽ一般健診同項目"]
["FK005","◆天神◆協会けんぽ差額人間ドック"]
["FK008","◇博多◇協会けんぽ付加健診同項目"]
["FK009","◇博多◇協会けんぽ一般健診同項目"]
["FK010","◇博多◇協会けんぽ差額人間ドック"]
["FK099","協会けんぽ肝炎ウィルス検査"]
["FK100","協会けんぽ子宮頸がん検診"]
["FK101","協会けんぽ乳がん検診(2方向)"]
["FK102","協会けんぽ乳がん検診(1方向)"]
["FZ001","◆天神◆マンモグラフィ(1方向)"]
["FZ002","◆天神◆マンモグラフィ(2方向)"]
["FZ003","◆天神◆乳腺超音波"]
["FZ004","◆天神◆子宮頸部細胞診"]
["FZ032","◇博多◇マンモグラフィ(1方向)"]
["FZ033","◇博多◇マンモグラフィ(2方向)"]
["FZ034","◇博多◇乳腺超音波"]
["FZ036","◇博多◇子宮頸部細胞診"]
["FZ100","【R2/窓口払い】インフルエンザ予防接種"]
["FZC01","胃カメラ(差額5500円)"]
["FZC02","胃カメラ差額(上下セット)"]

{"sheet":"運用について","index":8,"n_rows":10,"n_cols":5,"rows_kept":10,"cut":false,"hidden":true,"merged":[[5,1,9,1],[5,2,9,2],[5,0,9,0]]}
[null,"業務内容","流れ","詳細","システム"]
["①","既存ID抽出","当院→企業","個人一覧より企業登録の既存の情報を抽出しエクセルデーターを作成","★企業やり取りエクセルデータ"]
[]
["②","今年度の受診対象者リスト作成","企業→当院","①のエクセルデータに今年度の対象者・検査コース・OPなど希望内容を担当者で整え提供してもらう","★企業やり取りエクセルデータ"]
[]
["③","予約枠・契約・日程を調整する","当院","新規ID作成（ワイズマン作成自動化あり）","★ID自動化CSV作成"]
[null,null,null,"団体契約運用を作成　（協会けんぽ親団体で運用）"]
[null,null,null,"日程を仮枠で提供　もしくは　日程を確定し提供","★一括オーダ取り込みCSV作成"]
[null,null,null,"仮枠を提供","★仮枠提供一覧作成"]
[null,null,null,"日程を確定","★日程表一覧作成"]